fUSD/lending_fUSD_20241030
["ID","MTS","AMOUNT","RATE_DAILY","PERIOD"]
[341032244,1730287866488,-2886.2,0.0003494,5]
[341032245,1730287866497,-500.0,0.0003494,5]
[341032246,1730287866507,-1028.94,0.0003494,5]
[341032247,1730287866517,-1236.5,0.0003494,5]
[341032248,1730287866526,-500.0,0.0003494,5]
[341032249,1730287866536,-500.0,0.0003494,5]
[341032250,1730287866545,-500.0,0.0003494,5]
[341032251,1730287866555,-500.0,0.0003494,5]
[341032252,1730287866564,-1206.14,0.0003494,5]
[341032253,1730287866573,-500.0,0.0003494,5]
[341032254,1730287866583,-500.0,0.0003494,5]
[341032255,1730287866592,-500.0,0.0003494,5]
[341032256,1730287866601,-500.0,0.0003494,5]
[341032257,1730287866612,-1267.5,0.0003494,5]
[341032258,1730287866621,-500.0,0.0003494,5]
[341032259,1730287866630,-500.0,0.0003494,5]
[341032260,1730287866640,-1728.05,0.0003494,5]
[341032261,1730287866649,-1331.93,0.0003494,5]
[341032262,1730287866659,-500.0,0.0003494,5]
[341032263,1730287866668,-500.0,0.0003494,5]
[341032264,1730287866677,-500.0,0.0003494,5]
[341032265,1730287866687,-2000.0,0.0003494,5]
[341032266,1730287866697,-500.0,0.0003494,5]
[341032267,1730287866708,-979.39,0.0003494,5]
[341032268,1730287866717,-500.0,0.0003494,5]
[341032269,1730287866726,-500.0,0.0003494,5]
[341032270,1730287866735,-500.0,0.0003494,5]
[341032271,1730287866745,-500.0,0.0003494,5]
[341032272,1730287866754,-500.0,0.0003494,5]
[341032273,1730287866763,-500.0,0.0003494,5]
[341032274,1730287866772,-500.0,0.0003494,5]
[341032275,1730287866782,-500.0,0.0003494,5]
[341032276,1730287866792,-500.0,0.0003494,5]
[341032277,1730287866802,-500.0,0.0003494,5]
[341032278,1730287866811,-500.0,0.0003494,5]
[341032279,1730287866822,-500.0,0.0003494,5]
[341032280,1730287866831,-500.0,0.0003494,5]
[341032281,1730287866841,-500.0,0.00034941,5]
[341032282,1730287866850,-500.0,0.00034941,5]
[341032283,1730287866859,-500.0,0.00034941,5]
[341032284,1730287866868,-500.0,0.00034941,5]
[341032285,1730287866877,-500.0,0.00034941,5]
[341032286,1730287866887,-500.0,0.00034941,5]
[341032287,1730287866897,-500.0,0.00034941,5]
[341032288,1730287866906,-475.35670039,0.00034941,5]
[341032289,1730287866915,-500.0,0.00034941,5]
[341032290,1730287866924,-500.0,0.00034941,5]
[341032291,1730287866934,-546.7,0.00034941,5]
[341032292,1730287866947,-500.0,0.00034941,5]
[341032293,1730287866957,-500.0,0.00034941,5]
[341032294,1730287866966,-500.0,0.00034941,5]
[341032295,1730287866976,-500.0,0.00034941,5]
[341032296,1730287866985,-500.0,0.00034941,5]
[341032297,1730287866995,-500.0,0.00034941,5]
[341032298,1730287867004,-500.0,0.00034941,5]
[341032299,1730287867013,-500.0,0.00034941,5]
[341032300,1730287867022,-300.0,0.00034941,5]
[341032301,1730287867123,-500.0,0.00034941,5]
[341032302,1730287867132,-500.0,0.00034941,5]
[341032303,1730287867142,-221.92101391,0.00034941,5]
[341032304,1730287867151,-500.0,0.00034941,5]
[341032305,1730287867161,-500.0,0.00034941,5]
[341032306,1730287867170,-500.0,0.00034941,5]
[341032307,1730287867180,-500.0,0.00034941,5]
[341032308,1730287867189,-500.0,0.00034941,5]
[341032309,1730287867199,-500.0,0.00034941,5]
[341032310,1730287867209,-500.0,0.00034941,5]
[341032311,1730287867218,-500.0,0.00034941,5]
[341032312,1730287867227,-500.0,0.00034941,5]
[341032313,1730287867236,-500.0,0.00034941,5]
[341032314,1730287867246,-500.0,0.00034941,5]
[341032315,1730287867258,-500.0,0.00034941,5]
[341032316,1730287867267,-500.0,0.00034941,5]
[341032317,1730287867276,-500.0,0.00034941,5]
[341032318,1730287867287,-500.0,0.00034941,5]
[341032319,1730287867298,-500.0,0.00034941,5]
[341032320,1730287867308,-214.23738372,0.00034941,5]
[341032321,1730287867318,-500.0,0.00034941,5]
[341032322,1730287867328,-500.0,0.00034941,5]
[341032323,1730287867338,-500.0,0.00034941,5]
[341032324,1730287867349,-500.0,0.00034941,5]
[341032325,1730287867359,-500.0,0.00034941,5]
[341032326,1730287867369,-500.0,0.00034941,5]
[341032327,1730287867379,-500.0,0.00034941,5]
[341032328,1730287867388,-150.0,0.00034941,5]
[341032329,1730287867397,-578.68482778,0.00034941,5]
[341032330,1730287867407,-500.0,0.00034941,5]
[341032331,1730287867416,-500.0,0.00034941,5]
[341032332,1730287867425,-159.42156528,0.00034941,5]
[341032333,1730287867435,-500.0,0.00034941,5]
[341032334,1730287867446,-500.0,0.00034941,5]
[341032335,1730287867456,-500.0,0.00034941,5]
[341032336,1730287867466,-500.0,0.00034941,5]
[341032337,1730287867475,-500.0,0.00034941,5]
[341032338,1730287867485,-500.0,0.00034941,5]
[341032339,1730287867495,-500.0,0.00034941,5]
[341032340,1730287867504,-500.0,0.00034941,5]
[341032341,1730287867513,-500.0,0.00034941,5]
[341032342,1730287867523,-500.0,0.00034941,5]
[341032343,1730287867532,-543.01539236,0.00034941,5]
[341032344,1730287867541,-500.0,0.00034941,5]
[341032345,1730287867551,-500.0,0.00034941,5]
[341032346,1730287867560,-500.0,0.00034941,5]
[341032347,1730287867570,-500.0,0.00034941,5]
[341032348,1730287867579,-1507.49,0.00034941,5]
[341032349,1730287867589,-500.0,0.00034941,5]
[341032350,1730287867599,-500.0,0.00034941,5]
[341032351,1730287867608,-500.0,0.00034941,5]
[341032352,1730287867618,-500.0,0.00034941,5]
[341032353,1730287867628,-676.32,0.00034941,5]
[341032354,1730287867637,-500.0,0.00034941,5]
[341032355,1730287867647,-1022.39,0.00034941,5]
[341032356,1730287867656,-1138.41,0.00034941,5]
[341032357,1730287867665,-500.0,0.00034941,5]
[341032358,1730287867675,-1014.67,0.00034941,5]
[341032359,1730287867685,-500.0,0.00034941,5]
[341032360,1730287867694,-500.0,0.00034941,5]
[341032361,1730287867704,-210.69826641,0.00034968,2]
[341032362,1730287867713,-795.4120436,0.00034976,2]
[341032363,1730287867723,-1016.3623376,0.00034976,2]
[341032364,1730287867732,-1237.3126316,0.00034976,2]
[341032365,1730287867742,-1458.2629256,0.00034976,2]
[341032366,1730287867751,-1679.2132196,0.00034976,2]
[341032367,1730287867761,-3069.4140463,0.00034976,2]
[341032368,1730287867770,-2881.6318311,0.00034976,2]
[341032369,1730287867780,-2693.849616,0.00034976,2]
[341032370,1730287867789,-2506.0674008,0.00034976,2]
[341032371,1730287867799,-2318.2851857,0.00034976,2]
[341032372,1730287867808,-28622.34121938,0.0003499,3]
[341032373,1730287867818,-299.84985002,0.00034997,5]
[341032374,1730287867827,-500.0,0.00034997,5]
[341032375,1730287867836,-150.0,0.00034997,5]
[341032376,1730287867845,-541.0,0.00034997,5]
[341032377,1730287867855,-150.0,0.00034997,5]
[341032378,1730287867865,-500.0,0.00034998,5]
[341032379,1730287867874,-500.0,0.00034998,2]
[341032380,1730287867883,-500.0,0.00034999,5]
[341032381,1730287867893,-479.88318291,0.00034999,5]
[341032382,1730287867902,-500.0,0.00034999,5]
[341032383,1730287867912,-500.0,0.00034999,5]
[341032384,1730287867922,-500.0,0.00034999,5]
[341032385,1730287867932,-500.0,0.00034999,5]
[341032386,1730287867941,-500.0,0.00034999,5]
[341032387,1730287867951,-500.0,0.00034999,5]
[341032388,1730287867962,-500.0,0.00034999,5]
[341032389,1730287867971,-487.40115302,0.00034999,5]
[341032390,1730287867981,-1006.59,0.00034999,5]
[341032391,1730287867991,-1006.59,0.00034999,5]
[341032392,1730287868000,-1006.59,0.00034999,5]
[341032393,1730287868010,-1006.59,0.00034999,5]
[341032394,1730287868019,-1006.59,0.00034999,5]
[341032395,1730287868029,-1006.59,0.00034999,5]
[341032396,1730287868039,-1006.59,0.00034999,5]
[341032397,1730287868048,-1006.59,0.00034999,5]
[341032398,1730287868058,-1006.59,0.00034999,5]
[341032399,1730287868067,-1006.59,0.00034999,5]
[341032400,1730287868077,-1006.59,0.00034999,5]
[341032401,1730287868086,-1006.59,0.00034999,5]
[341032402,1730287868096,-1006.59,0.00034999,5]
[341032403,1730287868105,-1006.59,0.00034999,5]
[341032404,1730287868115,-1006.59,0.00034999,5]
[341032405,1730287868125,-1006.59,0.00034999,5]
[341032406,1730287868134,-1006.59,0.00034999,5]
[341032407,1730287868143,-1006.72465416,0.00034999,5]
[341032408,1730287868153,-500.0,0.00034999,5]
[341032409,1730287868163,-500.0,0.00034999,5]
[341032410,1730287868172,-500.0,0.00034999,5]
[341032411,1730287868182,-500.0,0.00034999,5]
[341032412,1730287868191,-500.0,0.00034999,5]
[341032413,1730287868200,-588.38101297,0.00034999,5]
[341032414,1730287868211,-480.57308205,0.00035,30]
[341032415,1730287868221,-300.0,0.00035,2]
[341032416,1730287868230,-292.99,0.00035,2]
[341032417,1730287868240,-798855.53811461,0.00035,30]
[341032418,1730287871239,300.0,0.00019725,2]
[341032419,1730287874149,163.409,0.00018963,2]
[341032420,1730287919873,155.95,0.00015342,2]
[341032421,1730287921480,171.0,0.00019725,2]
[341032423,1730288190578,550.0,0.00015,2]
[341032424,1730288191675,600.0,0.00017,2]
[341032426,1730288728933,-200.0,0.00023,2]
[341032427,1730288743394,-155.95,0.00027507,2]
[341032449,1730288962217,159.62,0.00015342,2]
[341032461,1730289032097,-721.01,0.0003,2]
[341032462,1730289032109,-536.689,0.0003,2]
[341032463,1730289032118,-1257.699,0.0003,2]
[341032464,1730289032128,-360.0,0.0003,3]
[341032465,1730289032138,-1039.0,0.000301,3]
[341032466,1730289032148,-618.22,0.00030337,2]
[341032467,1730289032158,-949.915099,0.0003171,2]
[341032468,1730289032167,-550.44,0.0003187,3]
[341032469,1730289032177,-47698.24046143,0.0003188,2]
[341032470,1730289032228,-10072.29803375,0.0003188,2]
[341032493,1730289040204,-1818.55354997,0.0003188,2]
[341032494,1730289040217,-1322.25000006,0.0003188,2]
[341032495,1730289040367,-4085.48162998,0.0003188,2]
[341032496,1730289040419,-5487.10600458,0.0003188,2]
[341032511,1730289395763,5682.2,0.00028,2]
[341032512,1730289425256,206.0,0.00028,2]
[341032513,1730289479858,164.58,0.00015342,2]
[341032515,1730289783292,261.0,0.00019725,2]
[341032516,1730289994202,550.0,0.00015,2]
[341032517,1730290009418,155.07,0.00015342,2]
[341032518,1730290009622,155.07,0.00027507,2]
[341032522,1730290235865,-200.0,0.000288,2]
[341032523,1730290235880,-623.8,0.00029621,2]
[341032524,1730290235889,-5857.8714,0.00029821,2]
[341032525,1730290235899,-223.32599841,0.00029821,2]
[341032526,1730290235908,-330.70132649,0.0003,10]
[341032527,1730290235918,-435.107,0.0003,2]
[341032528,1730290235927,-435.107,0.0003,2]
[341032529,1730290235937,-1000.0,0.00031422,2]
[341032530,1730290235947,-240.33,0.00031461,2]
[341032531,1730290235958,-150.0,0.00031473,7]
[341032532,1730290235969,-252.5,0.00031493,2]
[341032533,1730290235983,-150.0,0.00031526,2]
[341032534,1730290235993,-399.82770227,0.00031747,2]
[341032535,1730290236003,-336.59760244,0.00031773,5]
[341032536,1730290236012,-129088.3267171,0.0003178,2]
[341032539,1730290236282,-16366.29473739,0.0003178,2]
[341032540,1730290236291,-11631.2218651,0.000318,14]
[341032541,1730290236300,-41502.56295104,0.0003188,2]
[341032543,1730290238209,-3036.94726145,0.0003188,2]
[341032544,1730290238221,-7124.98672563,0.0003188,2]
[341032545,1730290238268,-4073.87765987,0.0003188,2]
[341032546,1730290238380,-21617.9964,0.0003188,2]
[341032581,1730290240311,-1314.66000004,0.0003188,2]
[341032630,1730290243705,-114.8972457,0.0003188,2]
[341032631,1730290243714,-4241.31388251,0.0003188,2]
[341032632,1730290243758,-522.78758418,0.0003188,2]
[341032633,1730290243767,-623.8,0.00031885,2]
[341032634,1730290243777,-605.41241552,0.00032394,2]
[341032635,1730290243814,-2254.59001444,0.00032394,2]
[341032636,1730290243880,-0.68325617,0.00032394,2]
[341032637,1730290243892,-767.1966082,0.00032394,2]
[341032638,1730290243923,-16119.98938118,0.00032394,2]
[341032639,1730290243933,-309.70273747,0.00032776,2]
[341032640,1730290243943,-400.0,0.000328,11]
[341032641,1730290243953,-15078.0,0.00032852,2]
[341032642,1730290243963,-283.13777284,0.00032866,2]
[341032643,1730290243972,-500.0,0.00032873,2]
[341032644,1730290243985,-500.0,0.00032876,5]
[341032645,1730290243995,-500.0,0.00032876,5]
[341032646,1730290244004,-513.21830519,0.00032876,5]
[341032647,1730290244013,-500.0,0.00032876,5]
[341032648,1730290244023,-500.0,0.00032876,5]
[341032649,1730290244032,-500.0,0.00032876,5]
[341032650,1730290244043,-183.33263903,0.00032876,5]
[341032651,1730290244053,-500.0,0.00032876,5]
[341032652,1730290244063,-500.0,0.00032876,5]
[341032653,1730290244072,-500.0,0.00032876,5]
[341032654,1730290244082,-547.51373297,0.00032876,5]
[341032655,1730290244091,-500.0,0.00032876,5]
[341032657,1730290244100,-500.0,0.00032876,5]
[341032658,1730290244111,-500.0,0.00032876,5]
[341032660,1730290244120,-500.0,0.00032876,5]
[341032662,1730290244130,-500.0,0.00032876,5]
[341032663,1730290244139,-506.13397405,0.00032876,5]
[341032665,1730290244148,-601.79608397,0.00032876,5]
[341032666,1730290244157,-500.0,0.00032876,5]
[341032668,1730290244166,-500.0,0.00032876,5]
[341032669,1730290244175,-500.0,0.00032876,5]
[341032670,1730290244185,-500.0,0.00032876,5]
[341032671,1730290244194,-500.0,0.00032876,5]
[341032672,1730290244203,-500.0,0.00032876,5]
[341032673,1730290244212,-500.0,0.00032876,5]
[341032674,1730290244222,-500.0,0.00032876,5]
[341032675,1730290244231,-500.0,0.00032876,5]
[341032676,1730290244242,-500.0,0.00032876,5]
[341032677,1730290244254,-500.0,0.00032876,7]
[341032678,1730290244266,-500.0,0.00032876,5]
[341032679,1730290244275,-500.0,0.00032876,5]
[341032680,1730290244286,-500.0,0.00032876,5]
[341032681,1730290244298,-500.0,0.00032876,5]
[341032682,1730290244308,-331.15018805,0.00032876,5]
[341032683,1730290244317,-372.01985698,0.00032876,5]
[341032684,1730290244328,-500.0,0.00032876,5]
[341032685,1730290244338,-500.0,0.00032876,5]
[341032686,1730290244349,-500.0,0.00032876,5]
[341032687,1730290244359,-500.0,0.00032876,5]
[341032688,1730290244368,-945.45,0.00032876,5]
[341032689,1730290244377,-500.0,0.00032876,5]
[341032690,1730290244387,-500.0,0.00032876,5]
[341032691,1730290244397,-152.75107568,0.00032876,5]
[341032692,1730290244407,-500.0,0.00032876,5]
[341032693,1730290244415,-500.0,0.00032876,5]
[341032694,1730290244425,-500.0,0.00032876,5]
[341032695,1730290244434,-500.0,0.00032876,5]
[341032696,1730290244443,-636.45,0.00032876,5]
[341032697,1730290244453,-500.0,0.00032876,5]
[341032698,1730290244463,-500.0,0.00032876,5]
[341032699,1730290244474,-500.0,0.00032876,5]
[341032700,1730290244484,-500.0,0.00032876,5]
[341032701,1730290244495,-673.22,0.00032876,5]
[341032702,1730290244505,-500.0,0.00032876,5]
[341032703,1730290244515,-500.0,0.00032876,5]
[341032704,1730290244525,-505.52380993,0.00032876,5]
[341032705,1730290244536,-500.0,0.00032876,5]
[341032706,1730290244546,-500.0,0.00032876,5]
[341032707,1730290244556,-500.0,0.00032876,5]
[341032708,1730290244567,-500.0,0.00032876,5]
[341032709,1730290244578,-500.0,0.00032876,5]
[341032710,1730290244587,-500.0,0.00032876,5]
[341032711,1730290244598,-500.0,0.00032876,5]
[341032712,1730290244610,-500.0,0.00032876,5]
[341032713,1730290244620,-500.0,0.00032876,5]
[341032714,1730290244630,-500.0,0.00032876,5]
[341032715,1730290244639,-500.0,0.00032876,5]
[341032716,1730290244649,-504.57351437,0.00032876,5]
[341032717,1730290244659,-831.12,0.00032876,2]
[341032718,1730290244668,-500.0,0.00032876,5]
[341032719,1730290244677,-500.0,0.00032876,5]
[341032720,1730290244686,-500.0,0.00032876,5]
[341032721,1730290244696,-500.0,0.00032876,5]
[341032722,1730290244705,-167.02704142,0.00032876,5]
[341032723,1730290244714,-500.0,0.00032876,5]
[341032724,1730290244723,-255.38725908,0.00032876,5]
[341032725,1730290244732,-500.0,0.00032876,5]
[341032726,1730290244742,-500.0,0.00032876,5]
[341032727,1730290244751,-382.50262779,0.00032876,5]
[341032732,1730290246132,-117.49737221,0.00032876,5]
[341032733,1730290246142,-371.28221295,0.00032876,5]
[341032734,1730290246151,-229.19661484,0.00032876,5]
[341032739,1730290246557,-936.24338516,0.00032876,5]
[341032741,1730290246566,-569.48784606,0.00032876,5]
[341032743,1730290246575,-500.0,0.00032876,5]
[341032745,1730290246584,-594.40085746,0.00032876,5]
[341032747,1730290246593,-500.0,0.00032876,5]
[341032749,1730290246603,-500.0,0.00032876,5]
[341032751,1730290246613,-500.0,0.00032876,5]
[341032752,1730290246623,-500.0,0.00032876,5]
[341032754,1730290246633,-500.0,0.00032876,5]
[341032756,1730290246644,-500.0,0.00032876,5]
[341032759,1730290246655,-500.0,0.00032876,5]
[341032761,1730290246665,-500.0,0.00032876,5]
[341032762,1730290246675,-502.49797421,0.00032876,5]
[341032763,1730290246684,-97.56993711,0.00032876,5]
[341032764,1730290246704,-287.896,0.00032876,5]
[341032765,1730290246715,-114.53406289,0.00032876,5]
[341032766,1730290246724,-259.65234749,0.00032876,5]
[341032767,1730290246751,-240.34765251,0.00032876,5]
[341032768,1730290246760,-500.0,0.00032876,5]
[341032769,1730290246770,-500.0,0.00032876,5]
[341032770,1730290246780,-500.0,0.00032876,5]
[341032771,1730290246790,-500.0,0.00032876,5]
[341032772,1730290246800,-500.0,0.00032876,5]
[341032773,1730290246810,-502.13,0.00032876,5]
[341032774,1730290246819,-500.0,0.00032876,5]
[341032775,1730290246829,-500.0,0.00032876,5]
[341032776,1730290246839,-500.0,0.00032876,5]
[341032777,1730290246849,-500.0,0.00032876,5]
[341032778,1730290246860,-500.0,0.00032876,5]
[341032779,1730290246869,-500.0,0.00032876,5]
[341032780,1730290246879,-552.51713831,0.00032876,5]
[341032781,1730290246888,-500.0,0.00032876,5]
[341032782,1730290246898,-500.0,0.00032876,5]
[341032783,1730290246907,-500.0,0.00032876,5]
[341032784,1730290246917,-500.0,0.00032876,5]
[341032785,1730290246927,-556.47,0.00032876,5]
[341032786,1730290246936,-538.88,0.00032876,5]
[341032787,1730290246946,-500.0,0.00032876,5]
[341032788,1730290246955,-500.0,0.00032876,5]
[341032789,1730290247108,-652.47,0.00032876,5]
[341032790,1730290247118,-500.0,0.00032876,5]
[341032791,1730290247127,-500.0,0.00032876,5]
[341032792,1730290247137,-500.0,0.00032876,5]
[341032793,1730290247146,-500.0,0.00032876,5]
[341032794,1730290247156,-500.0,0.00032876,5]
[341032795,1730290247166,-500.0,0.00032876,5]
[341032796,1730290247175,-564.61,0.00032876,5]
[341032797,1730290247184,-500.0,0.00032876,5]
[341032798,1730290247194,-500.0,0.00032876,5]
[341032799,1730290247203,-500.0,0.00032876,5]
[341032800,1730290247213,-500.0,0.00032876,5]
[341032801,1730290247222,-500.0,0.00032876,5]
[341032802,1730290247231,-500.0,0.00032876,5]
[341032803,1730290247241,-250.1621996,0.00032876,5]
[341032804,1730290247250,-500.0,0.00032876,5]
[341032805,1730290247259,-665.25,0.00032876,5]
[341032806,1730290247269,-952.37,0.00032876,5]
[341032807,1730290247278,-500.0,0.00032876,5]
[341032808,1730290247288,-500.0,0.00032876,5]
[341032809,1730290247297,-500.0,0.00032876,5]
[341032810,1730290247307,-300.0,0.00032876,5]
[341032811,1730290247317,-500.0,0.00032876,5]
[341032812,1730290247326,-964.59,0.00032876,5]
[341032813,1730290247335,-500.0,0.00032876,5]
[341032814,1730290247345,-500.0,0.00032876,5]
[341032815,1730290247355,-1235.03,0.00032876,5]
[341032816,1730290247365,-500.0,0.00032876,5]
[341032817,1730290247375,-500.0,0.00032876,5]
[341032818,1730290247385,-873.04,0.00032876,5]
[341032819,1730290247394,-500.0,0.00032876,5]
[341032820,1730290247404,-500.0,0.00032876,5]
[341032821,1730290247413,-500.0,0.00032876,5]
[341032822,1730290247422,-500.0,0.00032876,5]
[341032823,1730290247431,-500.0,0.00032876,5]
[341032824,1730290247442,-500.0,0.00032876,5]
[341032825,1730290247451,-500.0,0.00032876,5]
[341032826,1730290247461,-500.0,0.00032876,5]
[341032827,1730290247470,-500.0,0.00032876,5]
[341032828,1730290247480,-500.0,0.00032876,5]
[341032829,1730290247489,-500.0,0.00032876,5]
[341032830,1730290247499,-1025.19,0.00032876,5]
[341032831,1730290247508,-500.0,0.00032876,5]
[341032832,1730290247518,-500.0,0.00032876,5]
[341032833,1730290247527,-500.0,0.00032876,5]
[341032834,1730290247537,-500.0,0.00032876,5]
[341032835,1730290247546,-649.07,0.00032876,5]
[341032836,1730290247556,-500.0,0.00032876,5]
[341032837,1730290247566,-962.66,0.00032876,5]
[341032838,1730290247576,-500.0,0.00032876,5]
[341032839,1730290247586,-500.0,0.00032876,5]
[341032840,1730290247595,-665.3,0.00032876,5]
[341032841,1730290247608,-500.0,0.00032876,5]
[341032842,1730290247622,-500.0,0.00032876,5]
[341032843,1730290247631,-500.0,0.00032876,5]
[341032844,1730290247640,-500.0,0.00032876,5]
[341032845,1730290247650,-500.0,0.00032876,5]
[341032846,1730290247659,-500.0,0.00032876,5]
[341032847,1730290247668,-1078.85,0.00032876,5]
[341032848,1730290247678,-500.0,0.00032876,5]
[341032849,1730290247687,-500.0,0.00032876,5]
[341032850,1730290247697,-500.0,0.00032876,5]
[341032851,1730290247707,-500.0,0.00032876,5]
[341032852,1730290247716,-500.0,0.00032876,5]
[341032853,1730290247726,-500.0,0.00032876,5]
[341032854,1730290247736,-500.0,0.00032876,5]
[341032855,1730290247745,-500.0,0.00032876,5]
[341032856,1730290247755,-500.0,0.00032876,5]
[341032857,1730290247764,-500.0,0.00032876,5]
[341032858,1730290247773,-536.23,0.00032876,5]
[341032859,1730290247783,-500.0,0.00032876,5]
[341032860,1730290247792,-500.0,0.00032876,5]
[341032861,1730290247801,-500.0,0.00032876,5]
[341032862,1730290247810,-625.17,0.00032876,5]
[341032863,1730290247820,-500.0,0.00032876,5]
[341032864,1730290247829,-500.0,0.00032876,5]
[341032865,1730290247838,-500.0,0.00032876,5]
[341032866,1730290247847,-792.25,0.00032876,5]
[341032867,1730290247857,-500.0,0.00032876,5]
[341032868,1730290247866,-500.0,0.00032876,5]
[341032869,1730290247876,-500.0,0.00032876,5]
[341032870,1730290247885,-500.0,0.00032876,5]
[341032871,1730290247895,-500.0,0.00032876,5]
[341032872,1730290247904,-500.0,0.00032876,5]
[341032873,1730290247914,-500.0,0.00032876,5]
[341032874,1730290247924,-200.0,0.00032876,5]
[341032875,1730290247934,-1200.07,0.00032876,5]
[341032876,1730290247944,-592.19,0.00032876,5]
[341032877,1730290247954,-500.0,0.00032876,5]
[341032878,1730290247964,-500.0,0.00032876,5]
[341032879,1730290247974,-189.69390908,0.00032876,5]
[341032880,1730290247985,-500.0,0.00032876,5]
[341032881,1730290247995,-500.0,0.00032876,5]
[341032882,1730290248004,-500.0,0.00032876,5]
[341032883,1730290248014,-500.0,0.00032876,5]
[341032884,1730290248024,-150.0,0.00032876,5]
[341032885,1730290248034,-1003.96,0.00032876,5]
[341032886,1730290248044,-500.0,0.00032876,5]
[341032887,1730290248053,-1196.38,0.00032876,5]
[341032888,1730290248064,-500.0,0.00032876,5]
[341032889,1730290248074,-500.0,0.00032876,5]
[341032890,1730290248084,-500.0,0.00032876,5]
[341032891,1730290248094,-912.56,0.00032876,5]
[341032892,1730290248103,-500.0,0.00032876,5]
[341032893,1730290248114,-500.0,0.00032876,5]
[341032894,1730290248124,-500.0,0.00032876,5]
[341032895,1730290248134,-600.22940451,0.00032876,5]
[341032896,1730290248143,-500.0,0.00032876,5]
[341032897,1730290248152,-795.12,0.00032876,5]
[341032898,1730290248162,-500.0,0.00032876,5]
[341032899,1730290248171,-710.79,0.00032876,5]
[341032900,1730290248181,-1512.93,0.00032876,5]
[341032901,1730290248191,-640.56550278,0.00032876,5]
[341032902,1730290248200,-927.52,0.00032876,5]
[341032903,1730290248210,-500.0,0.00032876,5]
[341032904,1730290248219,-500.0,0.00032876,5]
[341032905,1730290248229,-2032.23,0.00032876,5]
[341032906,1730290248239,-500.0,0.00032876,5]
[341032907,1730290248247,-500.0,0.00032876,5]
[341032908,1730290248257,-572.62420403,0.00032876,5]
[341032909,1730290248267,-672.58,0.00032876,5]
[341032910,1730290248277,-500.0,0.00032876,5]
[341032911,1730290248286,-513.85246437,0.00032876,5]
[341032912,1730290248296,-500.0,0.00032876,5]
[341032913,1730290248305,-500.0,0.00032876,5]
[341032914,1730290248315,-500.0,0.00032876,5]
[341032915,1730290248324,-801.25,0.00032876,5]
[341032916,1730290248333,-446.7195759,0.00032876,5]
[341032917,1730290248343,-500.0,0.00032876,5]
[341032918,1730290248352,-500.0,0.00032876,5]
[341032919,1730290248363,-500.0,0.00032876,5]
[341032920,1730290248373,-500.0,0.00032876,5]
[341032921,1730290248383,-500.0,0.00032876,5]
[341032922,1730290248393,-500.0,0.00032876,5]
[341032923,1730290248403,-500.0,0.00032876,5]
[341032924,1730290248412,-500.0,0.00032876,5]
[341032925,1730290248422,-500.0,0.00032876,5]
[341032926,1730290248431,-500.0,0.00032876,5]